Cogmind - Beta 15 *** ADVENTURER MODE // 2025.09.05 @ 23:18:00 Player: Knightshade Result: Destroyed by 1C-52Q(R) with Subdweller Machine Gun Performance ------------- Evolutions (0) 0 Regions Visited (2) 400 Robots Destroyed (35) 175 Value Destroyed (785) 785 Prototype IDs (5) 100 Alien Tech Used (0) 0 Bonus (0) 0 TOTAL SCORE: 1460 Bonus ------- None Cogmind --------- Core Integrity 0/250 Matter 302/400 Energy 100/100 System Corruption 2% Temperature Cool (0) Movement Rolling (140) Ox4 Location -10/Subcaves Parts ------- > --- POWER (1) -------- Subdweller Power Source > --- PROPULSION (2) --- Wheel Wheel > --- UTILITY (2) ------ Huge Storage Unit Medium Matter Pod > --- WEAPON (2) ------- Light Cannon Light Cannon > --- INVENTORY (25) --- Wheel Subdweller Monowheel Disposable Heat Sink Medium Storage Unit Medium Matter Pod (100) Seismic Detector Cobbler Unit Rainbow Chip Improved EM Shotgun Improved EM Shotgun Improved EM Shotgun Riot Gun Particle Cannon Particle Cannon Barrage Gun Makeshift Shrapnel Gun Light Cannon Light Cannon Light Cannon Battle Cannon Battle Cannon Grenade Launcher Multitool Makeshift Sword Peak State ------------ > --- POWER ------------ Improved Ion Engine > --- PROPULSION ------- Light Treads Light Treads > --- UTILITY ---------- Huge Storage Unit Targeting Computer > --- WEAPON ----------- Improved EM Shotgun Improved EM Shotgun > --- INVENTORY -------- Improved Ion Engine Wheel Wheel Wheel Wheel Small Storage Unit Medium Storage Unit Medium Matter Pod Medium Matter Pod Seismic Detector Cobbler Unit Rainbow Chip Improved EM Shotgun Riot Gun Particle Cannon Particle Cannon Light Cannon Light Cannon Light Cannon Light Cannon Light Cannon Light Cannon Light Cannon Grenade Launcher [Rating: 16] Favorites ----------- Power Improved Ion Engine Engine Improved Ion Engine Propulsion Light Treads Treads Light Treads Wheel Wheel Utility Huge Storage Unit Device Seismic Detector Storage Huge Storage Unit Processor Targeting Computer Weapon Light Cannon Energy Gun Medium Laser Energy Cannon Particle Cannon Ballistic Gun Assault Rifle Ballistic Cannon Light Cannon Launcher Grenade Launcher Build | -11 -10 -10 ------- Run | Yrd Mat Sub Slots Evolved . | . . . Power . | . . . Propulsion . | . . . Utility . | . . . Weapon . | . . . Parts Attached 30 | 8 8 14 Power 5 | 2 1 2 Engine 5 | 2 1 2 Core . | . . . Reactor . | . . . Propulsion 6 | 2 1 3 Treads 2 | 2 . . Leg . | . . . Wheel 4 | . 1 3 Hover . | . . . Flight . | . . . Utility 7 | 2 3 2 Device 2 | 1 . 1 Storage 4 | 1 2 1 Processor 1 | . 1 . Hackware . | . . . Protection . | . . . Artifact . | . . . Weapon 12 | 2 3 7 Energy Gun 4 | 1 1 2 Energy Cannon 2 | . . 2 Ballistic Gun 1 | 1 . . Ballistic Cannon 4 | . 2 2 Launcher 1 | . . 1 Special Weapon . | . . . Impact Weapon . | . . . Slashing Weapon . | . . . Piercing Weapon . | . . . Special Melee Weapon . | . . . Unidentified Prototypes . | . . . Corrupted Parts 1 | . . 1 System Corruption 2 | . . 2 Parts Lost 7 | . 1 6 Power 3 | . 1 2 Propulsion 3 | . . 3 Utility . | . . . Weapon 1 | . . 1 Highest Loss Streak 4 | . 1 4 To Critical Strikes . | . . . Average Backups 20 | 2 18 22 Power . | . . . Propulsion 3 | 1 3 2 Utility 5 | . 5 5 Weapon 10 | . 8 12 Tool/Special . | . . . Unused Backups 21 | . . 21 Power . | . . . Propulsion 1 | . . 1 Utility 8 | . . 8 Weapon 11 | . . 11 Tool/Special 1 | . . 1 Average Slot Usage (%) 98 | . 99 97 Engine 13 | . 13 13 Treads 19 | . 27 12 Wheel 7 | . . 15 Device 2 | . 4 . Storage 18 | . 14 23 Processor 5 | . 9 2 Energy Gun 3 | . 4 1 Energy Cannon 3 | . . 7 Ballistic Gun 2 | . 4 . Ballistic Cannon 17 | . 18 17 Peak Build Rating 16 | 7 11 16 Average Rating 11 | 5 9 13 On Entrance 6 | . 7 11 Naked Turns . | . . . Heaviest Build 97 | 15 93 97 Greatest Support 40 | 40 40 40 Greatest Overweight (x) 9 | 2 4 9 Average Overweight (x) 4 | . 1 6 Largest Inventory Capacity 25 | 8 25 25 Average Capacity 23 | 7 24 23 Most Carried 25 | 4 25 25 Average Carried 20 | 2 19 23 Final Capacity 25 | 8 25 25 Final Carried 25 | 4 25 25 Class Distribution -------------------- 100% | Mutant Dominant Class ---------------- Mutant | -10/Materials Mutant | -10/Subcaves Resources | -11 -10 -10 ----------- Run | Yrd Mat Sub Matter Collected 1720 | 303 518 899 Remotely . | . . . Salvage Created 1083 | 152 592 339 Parts 69 | 7 40 22 Haulers Intercepted 2 | . 2 . Recyclers Shooed . | . . . Parts Field Recycled . | . . . Retrieved Matter . | . . . Parts Self-Destructed 6 | . . 6 Prevented . | . . . Kills | -11 -10 -10 ------- Run | Yrd Mat Sub Combat Hostiles Destroyed 24 | . 15 9 Guns 14 | . 13 1 Cannons 9 | . 2 7 Classes Destroyed 10 | 2 5 3 Worker 2 | . 2 . Tunneler 3 | 3 . . Hauler 2 | . 2 . Recycler 1 | 1 . . Watcher 3 | . 3 . Swarmer 8 | . 8 . Grunt 7 | . 7 . Artisan 1 | . . 1 Cobbler 1 | . . 1 Subdweller 9 | . . 9 Best Kill Streak 4 | 2 4 2 Combat Bots Only 3 | . 3 2 Max Kills in Single Turn 2 | 1 2 1 Gunslinging 1 | . 1 . Exploded . | . . . Melee . | . . . Uniques/NPCs Destroyed . | . . . Combat | -11 -10 -10 -------- Run | Yrd Mat Sub Hostile Shots Fired 145 | . 88 57 Missed 52 | . 36 16 Hits 93 | . 52 41 Projectile 93 | . 52 41 AOE 4 | . . 4 Critical Strikes 4 | . 3 1 Damage Taken 1199 | . 382 817 Core 263 | . 48 215 Absorbed by Shields . | . . . Ignored by Resistances 338 | . 124 214 Core Remaining (%) 100 | 100 . . Volleys Fired 137 | 11 58 68 Largest 2 | 2 2 2 Hottest 136 | 70 70 136 Shots Fired 270 | 22 116 132 Gun 134 | 22 90 22 Cannon 132 | . 26 106 Launcher 4 | . . 4 Special . | . . . Kinetic 174 | 11 71 92 Thermal 70 | 11 45 14 Explosive 4 | . . 4 Electromagnetic 22 | . . 22 Robot Hit Streak 27 | 9 11 27 Robot Miss Streak 8 | 1 8 1 Penetration Max . | . . . Secondary Targets 2 | . 2 . Max Gunslinging Chain 1 | . 1 . Shots Hit Robots 171 | 17 71 83 Core Hits 60 | 5 31 24 Critical Kills 1 | . . 1 Critical Parts Destroyed . | . . . Critical Strikes 3 | 1 1 1 Burn 1 | 1 . . Meltdown 1 | . . 1 Blast 1 | . 1 . Melee Attacks . | . . . Impact . | . . . Slashing . | . . . Piercing . | . . . Sneak Attacks . | . . . Combat Hostiles . | . . . Follow-up Attacks . | . . . Damage Inflicted 2429 | 218 997 1214 Guns 1220 | 218 761 241 Cannons 1209 | . 236 973 Explosions . | . . . Melee . | . . . Ramming . | . . . Kinetic 1475 | 130 599 746 Thermal 713 | 88 398 227 Explosive . | . . . Electromagnetic 241 | . . 241 Impact . | . . . Slashing . | . . . Piercing . | . . . Highest Corruption 2 | . . 2 Average Corruption 2 | . . 2 Corruption Purged . | . . . Corruption Blocked . | . . . Effects 24 | . . 24 Message Errors 5 | . . 5 Matter Fused 7 | . . 7 Heat Flow Errors 1 | . . 1 Energy Discharges 5 | . . 5 Data Loss (minor) 3 | . . 3 Data Loss (major) 2 | . . 2 Alerts 1 | . . 1 Overload Shots . | . . . Overflow Damage 11 | . . 11 Projectiles 11 | . . 11 Explosions . | . . . Melee . | . . . Knockbacks 11 | . 6 5 Impact . | . . . Kinetic 11 | . 6 5 Secondary . | . . . Self-Inflicted Damage . | . . . Shots . | . . . Rammed . | . . . Targets Rammed . | . . . Kicked . | . . . Crushed . | . . . Highest Temperature 144 | 45 81 144 Average Temperature 24 | 15 25 40 Received Heat Transfer 303 | . 117 186 Siege Activations . | . . . Martial Activations . | . . . Shielding Activations . | . . . Robots Disrupted . | . . . Combat Hostiles . | . . . Robots Corrupted . | . . . Combat Hostiles . | . . . Parts Fried 1 | . . 1 Impact Corruptions . | . . . Robots Melted 1 | . . 1 Combat Hostiles 1 | . . 1 Parts Melted 3 | . 1 2 Heat Transferred 1924 | 333 1184 407 Parts Sabotaged . | . . . Parts Stolen . | . . . Parts Stripped . | . . . Power Chain Reactions . | . . . Alert | -11 -10 -10 ------- Run | Yrd Mat Sub Maximum Alert Level . | . . . Low Security (%) 100 | 100 100 . Level 1 . | . . . Level 2 . | . . . Level 3 . | . . . Level 4 . | . . . Level 5 . | . . . High Security . | . . . Max Security . | . . . Peak Influence 128 | 10 128 . Initial . | . . . Average 23 | 1 25 . Influence Increases 546 | 20 526 . Destroy 0b10 Robot/C 300 | . 300 . Destroy 0b10 Robot/NC 55 | 20 35 . Destroy Leader 70 | . 70 . Successful Hack 31 | . 31 . Select Force Hacks 60 | . 60 . Lose Combat Pursuer 30 | . 30 . Influence Decreases 546 | 20 506 20 Entered New Map 11 | . . 11 Time Decay 525 | 20 496 9 Lost Part 10 | . 10 . Squads Dispatched 2 | . 2 . Investigation 2 | . 2 . Extermination . | . . . Reinforcement . | . . . Assault . | . . . Garrison . | . . . Intercept . | . . . Searches Triggered . | . . . Construction Impeded . | . . . Haulers Reinforced . | . . . Active Scanning Responses . | . . . Cargo Convoy Interrupts . | . . . Stealth | -11 -10 -10 --------- Run | Yrd Mat Sub Distress Signals 1 | . 1 . Communications Jammed . | . . . Distress Signals . | . . . Times Spotted 35 | . 21 14 Peak Tracking Total 4 | . 4 3 Tactical Retreats 2 | . 2 . Traps | -11 -10 -10 ------- Run | Yrd Mat Sub Traps Triggered 5 | . 4 1 Indirectly . | . . . Trap Hack Attempts . | . . . Triggered . | . . . Disarmed . | . . . Reprogrammed . | . . . Reused . | . . . Traps Extracted . | . . . Installed . | . . . Triggered . | . . . Machines | -11 -10 -10 ---------- Run | Yrd Mat Sub Machines Disabled 1 | . 1 . Max in Single Turn 1 | . 1 . Machines Repaired . | . . . Machines Dismantled . | . . . Machines Sabotaged . | . . . Overloaded Fab Kills . | . . . Hacking | -11 -10 -10 --------- Run | Yrd Mat Sub Machines Accessed 9 | . 9 . Terminals 7 | . 7 . Fabricators . | . . . Repair Stations . | . . . Recycling Units 2 | . 2 . Scanalyzers . | . . . Garrison Access . | . . . Total Hacks 32 | . 32 . Successful 23 | . 23 . Failed 9 | . 9 . Catastrophic . | . . . Database Lockouts . | . . . Manual 27 | . 27 . Terminals 28 | . 28 . Fabricators . | . . . Repair Stations . | . . . Recycling Units 4 | . 4 . Scanalyzers . | . . . Garrison Access . | . . . Terminal Hacks 7 | . 7 . Prototype ID Bank 4 | . 4 . Terminal Index 1 | . 1 . Hauler Manifests 1 | . 1 . Registered Components 1 | . 1 . Fabricator Hacks . | . . . Repair Station Hacks . | . . . Recycling Unit Hacks 2 | . 2 . Report Inventory 2 | . 2 . Scanalyzer . | . . . Garrison Access Hacks . | . . . Unauthorized Hacks 14 | . 14 . Terminals 12 | . 12 . Botnet 7 | . 7 . Skim 5 | . 5 . Fabricators . | . . . Repair Stations . | . . . Recycling Units 2 | . 2 . Tunnel 2 | . 2 . Scanalyzers . | . . . Garrison Access . | . . . Data Cores Recovered . | . . . Used . | . . . Hacking Detections 7 | . 7 . Full Trace Events . | . . . Feedback Events . | . . . Feedback Blocked . | . . . Robot Schematics Acquired . | . . . Robots Built . | . . . Authchips . | . . . Time . | . . . Total Robot Build Rating . | . . . Part Schematics Acquired . | . . . Parts Built . | . . . Authchips . | . . . Time . | . . . Total Part Build Rating . | . . . Parts Repaired . | . . . Time . | . . . Parts Recycled . | . . . Recycled Matter . | . . . Retrieved Matter . | . . . Retrieved Components . | . . . Parts Scanalyzed . | . . . Part Schematics Acquired . | . . . Parts Damaged . | . . . Bothacking | -11 -10 -10 ------------ Run | Yrd Mat Sub Used RIF Installer . | . . . Robots Hacked . | . . . Non-combat . | . . . Combat . | . . . Robot Hacks Applied . | . . . Relay Couplers Released . | . . . Fabnet Peak Effective % . | . . . Robots Rewired . | . . . Allies Hacked . | . . . Hacks Repelled . | . . . Allies | -11 -10 -10 -------- Run | Yrd Mat Sub Total Allies . | . . . Largest Group . | . . . Highest-Rated Group . | . . . Highest-Rated Ally . | . . . Total Orders . | . . . Ally Attacks . | . . . Total Damage . | . . . Kills . | . . . Allies Corrupted . | . . . Allies Melted . | . . . Intel | -11 -10 -10 ------- Run | Yrd Mat Sub Active Infowar (turns) 872 | 10 862 . Seismic 872 | 10 862 . Robot Analysis Total . | . . . Derelict Logs Recovered 1 | . . 1 Drone Launches . | . . . Drone Recoveries . | . . . Exploration | -11 -10 -10 ------------- Run | Yrd Mat Sub Turns Passed 5457 | 193 2585 2679 Spaces Moved 1974 | 96 762 1116 Core 10 | 9 . 1 Treads 929 | 87 762 80 Legs . | . . . Wheels 1035 | . . 1035 Hover . | . . . Flight . | . . . Fastest Speed 50 | 50 160 95 Average Speed 235 | 151 309 191 Slowest Speed 480 | 160 480 320 Overloaded Moves . | . . . Propulsion Burnouts . | . . . Robots Hopped . | . . . Potential Cave-ins . | . . . Cave-ins Triggered . | . . . Exploration Rate (%) 55 | 6 99 60 Regions Visited 2 Branch Regions 1 Pre-discovered Areas 2 | . 2 . Known Exits Taken 1 | . 1 . Unknown Exits Taken 1 | 1 . . Scrap Searched 1 | . . 1 Spaces Dug . | . . . Terrain Destroyed 24 | . . 24 Melee . | . . . Projectile . | . . . AOE 24 | . . 24 Terrain Rammed . | . . . Walls Destroyed . | . . . Machines Disabled . | . . . Actions | -11 -10 -10 --------- Run | Yrd Mat Sub Total 2514 | 117 872 1525 Wait 283 | . 7 276 Move 1972 | 95 761 1116 Hop . | . . . Pick Up 63 | 3 27 33 Fast Attach 15 | 7 4 4 Attach 11 | . 4 7 Detach . | . . . Swap 17 | 1 6 10 Drop 16 | . 5 11 Fire 137 | 11 58 68 Melee . | . . . Ram . | . . . Kick . | . . . Crush . | . . . Escape Stasis . | . . . Rewire . | . . . Trap . | . . . Miscellaneous . | . . . Route ------- -11/Scrapyard -10/Materials (discovered 6 exits: [*Mat x3] / [*Min x2] / *Sub) -10/Subcaves (discovered 2 exits: [*Mat x2]) History --------- Turn | Location | Event 15 | -11/Scrapyard | Discovered new exit (range 15) 194 | -11/Scrapyard | Entered Materials 310 | -10/Materials | Build established: Mutant 570 | -10/Materials | Discovered new exit (range 12) 1056 | -10/Materials | Discovered new exit (range 16) 1575 | -10/Materials | Discovered new exit (range 16) 1630 | -10/Materials | Loaded intel: 8 trap records 1678 | -10/Materials | Identified exit to Subcaves 1716 | -10/Materials | Learned location of 1 exit from Recycling 1743 | -10/Materials | Learned Storage stockpile data 1760 | -10/Materials | Learned 4 Subcaves zone layouts 1822 | -10/Materials | Learned Materials trap positions 2260 | -10/Materials | Discovered new exit (range 15) 2334 | -10/Materials | Discovered new exit (range 9) 2779 | -10/Materials | Entered Subcaves 2780 | -10/Subcaves | Approached by a straggling Scientist 2828 | -10/Subcaves | Shifting Twisted Machinery released Riot Gun 2855 | -10/Subcaves | Shifting Twisted Machinery released Sub. Laser 2893 | -10/Subcaves | Discovered new exit (range 3) 3049 | -10/Subcaves | A Subdweller sparked back to life 3049 | -10/Subcaves | A Subdweller sparked back to life 3049 | -10/Subcaves | A Subdweller sparked back to life 3071 | -10/Subcaves | Found Prototype Processor 3170 | -10/Subcaves | Learned Materials interactive machine intel 3829 | -10/Subcaves | Discovered new exit (range 14) 4436 | -10/Subcaves | A swath of the cavern ceiling suddenly collapsed 4566 | -10/Subcaves | Core integrity fell below 50% 4842 | -10/Subcaves | Lost 4 parts (1p2n1w) 4949 | -10/Subcaves | Disturbed a concealed Subdweller 4953 | -10/Subcaves | Ambushed by Subdweller buried in earth 4954 | -10/Subcaves | Core integrity fell below 20% 5037 | -10/Subcaves | Shifting Twisted Machinery released Battle Cannon 5038 | -10/Subcaves | Shifting Twisted Machinery released Barrage Gun 5458 | -10/Subcaves | Destroyed by 1C-52Q(R) with Subdweller Machine Gun Last Messages --------------- 04979_ System corrupted: Component data lost. 05005_ Acquired Sub. Power Source. 05009_ Subatomizers dissect the Sub. Monowheel. Battle Cannon falls loose from the Twisted Machinery. Barrage Gun falls loose from the Twisted Machinery. 05062_ Acquired Barrage Gun. 05066_ Dropped Battle Cannon. 05066_ Acquired Battle Cannon. 05069_ Dropped Lgt. Cannon. 05069_ Acquired Battle Cannon. 05095_ System corrupted: Heat flow error (+184). 05163_ System corrupted: Energy discharge (-64). 05212_ UK-NGS(u) tweaks Twisted Machinery. 05219_ Sub. Power Source shoots sparks and powers down. 05277_ UK-NGS(u) tweaks Twisted Machinery. 05326_ UK-NGS(u) builds Twisted Machinery. 05351_ System corrupted: Energy discharge (-31). 05371_ UK-NGS(u) tweaks Twisted Machinery. 05381_ UK-NGS(u) builds Twisted Machinery. 05414_ System corrupted: Component data lost. Map ----- +----------------------------------------------------+ | ?????????????????????????????????????????????????? | | ????????????????????????????????# ??????? | | ????????????????????????????????# ??????? | | ????????????????????????????????# ??????? | | ????????????????????????????????# ??????? | | ????????????????????????????????# ??????? | | ????????????????????????????????# ??????? | | ???????????????????########?????## ??????? | | ??????????????????##""#"""#??????# ??????? | | ??????????????????# """"" ##?????# #??????? | | ?????????????????? """ #?????# #?####?? | | ?????????????????? ""#" #?????## ## ##? | | ??????????????????""####" ##??????## #? | | ??????????????????""#??#" ##???????# ## | | ??????????????????###### " #???????# | | ????????????????????## R"##???????## | | ????????????????????# R "#####?????# ## | | ????????????????????# ### ##????## ### | | ????????????????###### "" #?????###?# | | ????????????????# #### "" #?????????# | | ????????????????# #?# #???###?### | | ????????????????# ### ##?## ### | | ?????????????????# ### | | ????????????????## ## | | ????????????????# ### ## | | ????????????????# @ #?###### | | ????????????????# ## #?????# ## | | ????????????????# ## ###????## ## ### | | ????????????????# #######??## ###### | | ????????????????# #??## #### #?## | | ????????????????# #### ### | | ????????????????## ### | | ?????????????????# ## ###?# | | ?????????????????##?### ## #????# | | ??????????????????????## #### ####?????# | | ???????????????????????# ####??## #????## | | ???????????????????????# ###??????## #???## | | ???????????????????????####?????????## #???# | | ??????????????????????????????????????####???# | | ?????????????????????????????????????????##### ## | | ?????????????????????????????????????????# ### | | ?????????????????????????????????????????## ### | | ????????????????????????????????????????### # | | ???????????????????????????????????????## # | | ???????????????????????????????????????# # | | ??????????????????????????????????#????# # | | ??????????????????????????????????# ???### | | ?????????????????????????????????## ??### | | ????????????????????????????????## ## | | ????????????????????????????????# | +----------------------------------------------------+ Best States ------------- Heat Dissipation 25 Energy Generation 15 Energy Capacity 265 Matter Stores 400 Matter Capacity 400 Sight Range 16 Terrain Scan Density 10 Resistance: KI 20 Resistance: TH 20 Resistance: EX 20 Resistance: EM 20 Resistance: I 20 Resistance: S 20 Resistance: P 20 Evasion (%) 41 Targeting Accuracy 5 Recoil Reduction 2 Offensive Hacking 10 Item Schematics ----------------- None Robot Schematics ------------------ None Fabricated ------------ Nothing Repaired ---------- Nothing Alien Tech Used ----------------- None Achievements -------------- None Challenges ------------ None Game ------ Seed MyomerCannonAutocannon Manual? 0 Play Time 00:29:33 Cumulative 129.4 hours Start 2025.09.05 @ 21:20:22 End 2025.09.05 @ 23:18:00 Sessions 1 Manual Loads 0 Difficulty Adventurer Special Mode None Game No. 91 Rogue 0 Adventurer 91 Explorer 0 Win Type - Total 0 Types 0/0/0/0/0/0/0/0/0/0 Lore% 33 Gallery% 45 Achievement% 39 Wizard Run 0 Options --------- Layout 0 ASCII 0 Keyboard 0 Movement Mouse Keybinds 0 Fullscreen 1 Font 18/SmallcapsGlow Map View 76x50 Zoom Use 0% Tactical HUD 1 Map Filters NONE Filters NONE Steam 1 RUN: 743d81ae-f1ec-4074-9669-3ba34d309b67